Cogmind - Beta 16 @@@ ROGUE MODE // 2025.11.28 @ 02:25:22 Player: Red Box Result: Destroyed by Executioner with Helical Railgun Performance ------------- Evolutions (5) 2500 Regions Visited (13) 2600 Robots Destroyed (142) 710 Value Destroyed (5419) 5419 Prototype IDs (57) 1140 Alien Tech Used (0) 0 Bonus (5278) 5278 TOTAL SCORE: 17647 Bonus ------- High Alert Combat Kills 128 Follower Combat Kills 1418 Network Hubs Disabled 400 Registered with UFD 300 Met Optimus in HQ 500 Met Warlord at Base 500 MAIN.C Attacked Warlord 500 Warlord Defense Kills 464 Built Enhanced Grunts 300 A7 Reached Mainframe 300 Met R17 at Cetus 500 Friendly Fire -32 Cogmind --------- Core Integrity 0/1000 Matter 295/300 Energy 99/100 System Corruption 1% Temperature Cool (0) Movement Treading (135) Location -5/Warlord Parts ------- > --- POWER (1) -------- (None) > --- PROPULSION (3) --- Experimental Biometal Heavy Treads > --- UTILITY (10) ----- High-capacity Storage Unit Advanced Signal Interpreter Advanced Targeting Computer Advanced Hacking Suite > --- WEAPON (3) ------- (None) > --- INVENTORY (20) --- Vortex Chain Reactor Armored Medium Treads Enhanced Biometal Leg Enhanced Biometal Leg Advanced Energy Well (500) Matter Compressor (250) Spectral Analyzer Experimental Phase Shifter Centrium Medium Armor Plating System Mapper Gamma Rifle Advanced Variable Charge Gun Neutron Cannon Advanced KE Penetrator Advanced KE Penetrator Enhanced Gauss Cannon Companion Sword Peak State ------------ > --- POWER ------------ Quantum Reactor > --- PROPULSION ------- Experimental Biometal Heavy Treads Enhanced Biometal Leg > --- UTILITY ---------- High-capacity Storage Unit Advanced Signal Interpreter Advanced Targeting Computer Advanced Particle Charger Experimental Phase Shifter Centrium Medium Armor Plating Enhanced Scrap Shield Experimental Thermal Shield Advanced Hacking Suite > --- WEAPON ----------- Advanced Variable Charge Gun Advanced Variable Charge Gun Neutron Cannon > --- INVENTORY -------- Experimental Biometal Heavy Treads Advanced Energy Well Matter Compressor Spectral Analyzer Centrium Medium Armor Plating System Mapper Wardrone Bay Vortex Shotgun Vortex Shotgun Advanced KE Penetrator Advanced KE Penetrator Companion Sword [Rating: 143] Favorites ----------- Power Subdweller Power Source Engine Subdweller Power Source Power Core Fission Core Reactor Quantum Reactor Propulsion Aluminum Leg Treads Experimental Biometal Heavy Treads Leg Aluminum Leg Wheel Armored Wheel Utility High-capacity Storage Unit Device Improved Sensor Array Storage High-capacity Storage Unit Processor Advanced Targeting Computer Hackware Advanced Hacking Suite Protection Centrium Medium Armor Plating Weapon Subdweller Beam Cannon Energy Gun Subdweller Laser Energy Cannon Subdweller Beam Cannon Ballistic Gun Improved Heavy Machine Gun Ballistic Cannon Light Cannon Launcher Long-range Missile Launcher Special Weapon Junk Cannon Slashing Weapon Companion Sword Special Melee Weapon Datajack Build | -11 -10 -10 -10 -8 -6 -6 -6 -6 -6 -5 -5 -5 -5 ------- Run | Yrd Mat Min Sub Scr Fac Ext Cet Arc Hub Fac Upp Upp War Slots Evolved 10 | . . . . . 8 . . . . 2 . . . Power . | . . . . . . . . . . . . . . Propulsion 1 | . . . . . 1 . . . . . . . . Utility 8 | . . . . . 7 . . . . 1 . . . Weapon 1 | . . . . . . . . . . 1 . . . Parts Attached 165 | 7 8 3 18 18 44 10 3 6 8 17 9 2 12 Power 12 | 1 . . 2 3 3 . 1 . 1 . 1 . . Engine 8 | 1 . . 2 3 2 . . . . . . . . Core 2 | . . . . . 1 . 1 . . . . . . Reactor 2 | . . . . . . . . . 1 . 1 . . Propulsion 29 | 2 3 1 5 4 8 . . . . 3 . 1 2 Treads 5 | . . . . . 1 . . . . 3 . . 1 Leg 14 | 2 2 1 3 . 4 . . . . . . 1 1 Wheel 10 | . 1 . 2 4 3 . . . . . . . . Hover . | . . . . . . . . . . . . . . Flight . | . . . . . . . . . . . . . . Utility 67 | 2 . 2 2 2 26 4 2 6 3 11 3 . 4 Device 32 | 1 . 1 1 . 11 2 . 4 1 7 2 . 2 Storage 5 | 1 . 1 1 . 1 . . . 1 . . . . Processor 8 | . . . . . 6 . . . . . . . 2 Hackware 7 | . . . . . 2 1 . 2 1 1 . . . Protection 15 | . . . . 2 6 1 2 . . 3 1 . . Artifact . | . . . . . . . . . . . . . . Weapon 57 | 2 5 . 9 9 7 6 . . 4 3 5 1 6 Energy Gun 18 | 2 1 . 1 3 4 . . . . 1 4 . 2 Energy Cannon 8 | . 2 . 3 1 . . . . 2 . . . . Ballistic Gun 8 | . . . 3 . 1 2 . . . . . . 2 Ballistic Cannon 10 | . 2 . 1 2 2 . . . . 1 1 . 1 Launcher 3 | . . . 1 . . . . . 2 . . . . Special Weapon 6 | . . . . 1 . 2 . . . 1 . 1 1 Impact Weapon . | . . . . . . . . . . . . . . Slashing Weapon 3 | . . . . 1 . 2 . . . . . . . Piercing Weapon . | . . . . . . . . . . . . . . Special Melee Weapon 1 | . . . . 1 . . . . . . . . . Unidentified Prototypes 17 | . . . . 2 1 1 1 . 3 3 2 . 4 Corrupted Parts 6 | . . . . . . . . . 1 . 3 . 2 System Corruption 24 | . . . . . . . . . 9 . 6 . 9 Parts Lost 41 | . 1 . 5 . 10 . . . 1 15 . . 9 Power 3 | . . . . . 1 . . . . 1 . . 1 Propulsion 8 | . . . 1 . 3 . . . . 3 . . 1 Utility 17 | . . . 1 . 4 . . . 1 7 . . 4 Weapon 13 | . 1 . 3 . 2 . . . . 4 . . 3 Highest Loss Streak 15 | . 1 . 3 . 7 . . . 1 15 . . 9 To Critical Strikes 3 | . . . . . . . . . 1 1 . . 1 Average Backups 17 | 5 7 13 18 21 17 18 18 18 18 19 14 18 15 Power 1 | . . . 1 1 1 . 1 2 1 1 . . . Propulsion 2 | 3 2 4 4 3 1 . . . . . 1 1 1 Utility 6 | . 1 4 5 8 5 8 8 8 7 7 6 8 6 Weapon 6 | 1 2 3 6 6 7 7 7 7 7 8 5 7 6 Tool/Special . | . . . . . . . . . . . . . . Unused Backups 59 | . 6 . 2 24 7 3 . . 4 2 . . 11 Power 5 | . 1 . . 2 . 1 . . . . . . 1 Propulsion 12 | . 2 . 1 4 1 2 . . . . . . 2 Utility 24 | . 1 . . 9 4 . . . 3 . . . 7 Weapon 18 | . 2 . 1 9 2 . . . 1 2 . . 1 Tool/Special . | . . . . . . . . . . . . . . Average Slot Usage (%) 87 | . 99 100 95 84 79 82 87 87 86 82 81 86 83 Engine 8 | . 13 14 14 14 4 . . . . . . . . Leg 12 | . 24 28 24 1 10 22 22 17 17 14 . 4 4 Wheel 8 | . 3 . 3 26 5 . . . . . . . . Device 8 | . 14 14 9 . 13 10 5 14 11 16 10 11 12 Storage 10 | . 14 14 14 14 5 5 5 5 5 5 5 5 5 Processor 6 | . . . . . 15 16 16 16 17 15 17 17 15 Hackware 2 | . . . . . 1 10 11 2 8 8 5 5 5 Protection 5 | . . . . 6 11 5 11 11 7 5 10 11 10 Energy Gun 6 | . 14 . 10 8 1 . . . . . 10 9 8 Energy Cannon 5 | . 7 15 16 1 . . . . 1 3 3 . 1 Ballistic Cannon 2 | . 6 12 . 3 1 . . . . . 1 5 3 Special Weapon 1 | . . . . 1 3 3 5 5 1 4 . . . Special Melee Weapon 1 | . . . . 4 . . . . . . . . . Peak Build Rating 143 | 9 10 11 18 32 98 95 102 102 115 127 115 115 143 Average Rating 53 | 5 9 10 16 24 80 89 97 98 104 121 113 113 120 On Entrance 61 | . 9 9 11 18 32 95 80 100 101 115 60 111 115 Avg Prop Armor Cover (%) 5 | . 8 . 8 8 6 . . . 8 . . 2 2 Naked Turns . | . . . . . . . . . . . . . . Heaviest Build 217 | 15 17 52 217 217 120 85 78 86 92 99 107 107 109 Greatest Support 115 | 20 20 20 20 28 98 98 98 98 82 115 85 85 112 Greatest Overweight (x) 17 | 2 1 2 13 17 6 . . 1 2 1 1 1 1 Average Overweight (x) 2 | . . 1 4 4 1 . . . . . . 1 . Largest Inventory Capacity 35 | 8 8 20 35 35 20 20 20 20 20 20 20 20 20 Average Capacity 22 | 7 8 19 24 28 20 20 20 20 20 20 20 20 20 Most Carried 35 | 7 8 20 35 35 20 20 20 20 20 20 19 20 20 Average Carried 20 | 5 7 14 22 26 18 18 19 19 19 19 15 19 19 Final Capacity 35 | 8 8 20 35 20 20 20 20 20 20 20 20 20 20 Final Carried 35 | 7 8 20 35 20 20 20 20 20 19 17 19 19 18 Class Distribution -------------------- 39% | Mutant 19% | Hauler-Mutant 8% | Commander-Mutant 7% | Scavenger-Gunner 6% | Derelict-Mutant 5% | Skirmisher 3% | Scavenger-Mutant Dominant Class ---------------- Mutant | -10/Materials Mutant | -10/Mines Mutant | -10/Subcaves Hauler-Mutant | -8/Scraptown Mutant | -6/Factory Commander-Mutant | -6/Extension Commander-Mutant | -6/Cetus Commander-Mutant | -6/Archives Commander-Mutant | -6/Hub_04(d) Scavenger-Gunner | -5/Factory Scavenger-Gunner | -5/Upper Caves Derelict-Gunner | -5/Upper Caves Scavenger-Tank | -5/Warlord Resources | -11 -10 -10 -10 -8 -6 -6 -6 -6 -6 -5 -5 -5 -5 ----------- Run | Yrd Mat Min Sub Scr Fac Ext Cet Arc Hub Fac Upp Upp War Matter Collected 5331 | 270 330 408 500 321 1417 390 145 191 195 411 326 180 247 Remotely . | . . . . . . . . . . . . . . Salvage Created 5991 | 174 696 342 268 190 1972 514 80 305 152 797 123 145 233 Parts 267 | 15 39 18 10 6 94 5 2 28 2 29 4 2 13 Haulers Intercepted 3 | . 1 . . . 2 . . . . . . . . Recyclers Shooed 3 | . . 1 . . 1 1 . . . . . . . Parts Field Recycled . | . . . . . . . . . . . . . . Retrieved Matter . | . . . . . . . . . . . . . . Parts Self-Destructed 3 | . . . 3 . . . . . . . . . . Prevented . | . . . . . . . . . . . . . . Parts Restored . | . . . . . . . . . . . . . . Kills | -11 -10 -10 -10 -8 -6 -6 -6 -6 -6 -5 -5 -5 -5 ------- Run | Yrd Mat Min Sub Scr Fac Ext Cet Arc Hub Fac Upp Upp War Combat Hostiles Destroyed 99 | . 15 12 7 3 28 8 1 . 3 15 2 . 5 Melee 3 | . . . . . 2 . 1 . . . . . . Guns 18 | . 12 . . . 3 . . . . . . . 3 Cannons 42 | . 3 10 3 1 12 2 . . . 9 2 . . AOE 18 | . . 2 3 . 5 . . . 2 4 . . 2 Classes Destroyed 20 | 2 4 . 1 2 6 1 . . 1 . 1 1 1 Worker 3 | . . . . . 2 . . . . 1 . . . Builder 1 | . . . . . 1 . . . . . . . . Tunneler 6 | 4 . 1 . . 1 . . . . . . . . Hauler 3 | . 1 . . . 2 . . . . . . . . Recycler 11 | 1 1 . . . 6 1 . . . 2 . . . Operator 10 | . . . . . . 1 . 9 . . . . . Watcher 7 | . 3 . . . 3 1 . . . . . . . Swarmer 30 | . 9 4 . . 9 1 . . . 4 . . 3 Grunt 24 | . 6 8 1 . 2 4 . . 1 2 . . . Brawler 1 | . . . . . . . . . . . . . 1 Protector 1 | . . . . . . . . . 1 . . . . Sentry 5 | . . . . . 3 1 . . . 1 . . . Specialist 3 | . . . . . 2 . . . . 1 . . . Hunter 6 | . . . . . 3 2 . . . . . . 1 Programmer 17 | . . . . . 9 . . . . 7 1 . . Cetus Guard 1 | . . . . . . . 1 . . . . . . Lightning 1 | . . . . . . . . . 1 . . . . Subdweller 7 | . . . 7 . . . . . . . . . . Explorer 1 | . . . . 1 . . . . . . . . . Scrapper 2 | . . . . 2 . . . . . . . . . Decomposer 2 | . . . . . . . . . . . . 2 . Samaritan 2 | . . . . . . . . . . . . 2 . Thug 1 | . . . . . . . . . . . . . 1 Mutant 1 | . . . . . . . . . . . 1 . . Best Kill Streak 6 | 4 3 3 2 2 6 5 1 2 2 5 1 . 5 Combat Bots Only 5 | . 3 3 2 2 4 5 1 . 2 4 1 . 5 Max Kills in Single Turn 4 | 1 2 2 2 1 3 1 1 1 2 4 1 1 2 Gunslinging 1 | . 1 . . . . . . . . . . . . Exploded 4 | . . 2 2 . 2 . . . 2 4 . . 2 Melee 1 | . . . . . 1 . 1 . . . . . . Uniques/NPCs Destroyed . | . . . . . . . . . . . . . . Combat | -11 -10 -10 -10 -8 -6 -6 -6 -6 -6 -5 -5 -5 -5 -------- Run | Yrd Mat Min Sub Scr Fac Ext Cet Arc Hub Fac Upp Upp War Hostile Shots Fired 1141 | . 51 28 33 1 361 107 19 2 30 304 39 36 130 Missed 356 | . 11 9 5 . 113 49 5 2 10 97 18 10 27 Hits 785 | . 40 19 28 1 248 58 14 . 20 207 21 26 103 Melee 7 | . . . . 1 . . . . 3 . . . 3 Projectile 778 | . 40 19 28 . 248 58 14 . 17 207 21 26 100 AOE 3 | . . . . . 1 . . . 2 . . . . Critical Strikes 27 | . 1 . 2 . 2 2 5 . 3 9 . . 3 Part Disruptions 8 | . . . . . 2 . . . 1 3 2 . . Damage Taken 12566 | . 378 220 666 30 2748 765 396 . 737 3937 285 237 2167 Core 2053 | . 59 52 106 . 595 55 28 . 143 566 26 . 423 Absorbed by Shields 101 | . . . . . . . 72 . 29 . . . . Redirected to Shielding 48 | . . . . . 48 . . . . . . . . Ignored by Resistances 471 | . . . . . 176 . . . . 246 . . 49 Regen/Repaired (Parts) 375 | . 23 . . . . 231 . . . . . . 121 Core Remaining (%) 38 | 100 . . . 13 . . . . 3 . . . . Volleys Fired 429 | 9 42 51 61 22 107 32 18 2 10 51 7 6 11 Largest 3 | 2 2 2 2 1 2 2 1 1 2 2 3 2 3 Hottest 250 | 80 120 120 160 80 125 88 5 5 180 90 250 135 250 Shots Fired 642 | 18 84 102 83 22 142 35 18 2 12 75 13 13 23 Gun 166 | 18 70 . 6 4 30 1 . . 1 . 6 13 17 Cannon 298 | . 14 102 74 3 51 6 . . 2 33 7 . 6 Launcher 13 | . . . 3 . 5 . . . 2 3 . . . Special 165 | . . . . 15 56 28 18 2 7 39 . . . Kinetic 202 | . . 92 35 . 52 7 . . 1 8 6 . 1 Thermal 140 | . 14 10 45 7 15 . . . 2 25 7 . 15 Explosive 12 | . . . 3 . 5 . . . 1 3 . . . Electromagnetic 116 | 18 70 . . . 14 . . . 1 . . 13 . Impact 122 | . . . . 15 56 24 . . . 27 . . . Entropic 7 | . . . . . . . . . . . . . 7 Robot Hit Streak 16 | 9 8 7 16 11 13 11 6 1 8 11 13 7 9 Robot Miss Streak 6 | 1 4 2 2 2 6 4 1 1 1 2 1 3 1 Penetration Max . | . . . . . . . . . . . . . . Secondary Targets 3 | . 2 . . . . . . . . . . . 1 Max Gunslinging Chain 1 | . 1 . . . . . . . . . . . 1 Shots Hit Robots 378 | 12 47 26 31 10 92 30 19 13 11 55 7 10 15 Core Hits 186 | 6 24 15 10 1 59 9 2 5 2 28 4 9 12 Critical Kills 6 | . . . 1 . 5 . . . . . . . . Critical Parts Destroyed 13 | . . . . . 8 3 . . . 1 . . 1 Critical Strikes 23 | . . 3 2 . 13 3 . . . 1 . . 1 Meltdown 1 | . . . 1 . . . . . . . . . . Destroy 5 | . . . . . 5 . . . . . . . . Blast 4 | . . 3 1 . . . . . . . . . . Smash 12 | . . . . . 8 3 . . . 1 . . . Detonate 1 | . . . . . . . . . . . . . 1 Melee Attacks 90 | . . . . 4 33 4 31 18 . . . . . Impact . | . . . . . . . . . . . . . . Slashing 86 | . . . . . 33 4 31 18 . . . . . Piercing . | . . . . . . . . . . . . . . Sneak Attacks 19 | . . . . 4 3 1 . 11 . . . . . Combat Hostiles . | . . . . . . . . . . . . . . Follow-up Attacks . | . . . . . . . . . . . . . . Damage Inflicted 15754 | 180 709 691 825 198 5073 1811 169 1077 340 2702 281 240 1458 Guns 2301 | 180 553 . 91 . 418 24 . . 18 . 143 155 719 Cannons 3320 | . 156 546 513 . 814 113 . . 78 919 138 . 43 Explosions 2367 | . . 145 219 . 641 . . . 244 337 . 85 696 Melee 2032 | . . . . . 675 111 169 1077 . . . . . Ramming 2 | . . . 2 . . . . . . . . . . Kinetic 2198 | . . 439 477 . 814 137 . . 18 232 81 . . Thermal 2938 | . 156 252 127 . 436 . . . 78 742 200 . 947 Explosive 1135 | . . . 219 . 411 . . . 223 282 . . . Electromagnetic 1206 | 180 553 . . . 212 . . . 21 . . 240 . Impact 5732 | . . . . 198 2525 1563 . . . 1446 . . . Slashing 2032 | . . . . . 675 111 169 1077 . . . . . Piercing . | . . . . . . . . . . . . . . Entropic 511 | . . . . . . . . . . . . . 511 Highest Corruption 26 | . . . . . 3 . 26 26 14 7 17 17 17 Average Corruption 9 | . . . . . 2 . 26 12 3 3 16 17 4 Corruption Purged 31 | . . . . . 5 . . 26 . . . . . Corruption Blocked . | . . . . . . . . . . . . . . Effects 182 | . . . . . 33 . 12 20 4 1 63 41 8 Message Errors 46 | . . . . . 8 . 5 5 2 1 14 10 1 Matter Fused 52 | . . . . . 10 . 3 6 1 . 18 13 1 Heat Flow Errors 18 | . . . . . 2 . 1 2 . . 8 5 . Energy Discharges 18 | . . . . . 3 . 1 2 . . 5 5 2 Parts Rejected 1 | . . . . . . . . 1 . . . . . Parts Fused 2 | . . . . . 1 . . . . . 1 . . Data Loss (minor) 25 | . . . . . 6 . . 3 1 . 9 4 2 Data Loss (major) 10 | . . . . . 1 . 1 1 . . 5 2 . Misfires 3 | . . . . . 1 . . . . . . 1 1 Alerts 4 | . . . . . 1 . . . . . 2 . 1 Misdirections 2 | . . . . . . . 1 . . . . 1 . Weapon Failures 1 | . . . . . . . . . . . 1 . . Overload Shots 1 | . . . . . . . . . . . . . 1 Overflow Damage 3151 | . 9 4 . 66 1390 623 . 384 11 604 . . 60 Projectiles 2450 | . 9 . . 66 1218 616 . . . 541 . . . Explosions 264 | . . 4 . . 126 . . . 11 63 . . 60 Melee 437 | . . . . . 46 7 . 384 . . . . . Knockbacks 63 | . . 12 4 2 19 14 . . . 12 . . . Impact 32 | . . . . 2 13 7 . . . 10 . . . Kinetic 25 | . . 11 4 . 6 3 . . . 1 . . . Secondary 6 | . . 1 . . . 4 . . . 1 . . . Self-Inflicted Damage 139 | . . . . . 40 . . . . 21 . 25 53 Shots 4 | . . . . . 1 . . . . 1 . 1 1 Rammed . | . . . . . . . . . . . . . . Targets Rammed 2 | . . . 2 . . . . . . . . . . Kicked 2 | . . . 2 . . . . . . . . . . Crushed . | . . . . . . . . . . . . . . Highest Temperature 617 | 126 282 108 251 272 617 45 282 267 135 234 260 267 218 Average Temperature 104 | 66 63 29 106 127 175 19 160 126 80 57 84 93 75 Received Heat Transfer 1671 | . 96 84 367 . 306 246 26 . . 423 12 24 87 Effects 23 | . . . . . 20 . 1 . . 2 . . . Shutdowns 4 | . . . . . 4 . . . . . . . . Energy Bleed 1 | . . . . . . . 1 . . . . . . Interference 4 | . . . . . 2 . . . . 2 . . . Short Circuit 1 | . . . . . 1 . . . . . . . . Damage (major) 11 | . . . . . 11 . . . . . . . . Damage (core) 2 | . . . . . 2 . . . . . . . . Siege Activations . | . . . . . . . . . . . . . . Martial Activations . | . . . . . . . . . . . . . . Shielding Activations . | . . . . . . . . . . . . . . Robots Disrupted 1 | . . . . . . . . . . 1 . . . Combat Hostiles . | . . . . . . . . . . . . . . Robots Corrupted 18 | . . . . 2 8 6 . . . 2 . . . Combat Hostiles 16 | . . . . 2 6 6 . . . 2 . . . Parts Fried 25 | . 1 . . 3 8 6 . . . 4 . 3 . Impact Corruptions 64 | . . . . 3 26 18 . . . 17 . . . Robots Melted 1 | . . . 1 . . . . . . . . . . Combat Hostiles 1 | . . . 1 . . . . . . . . . . Parts Melted 5 | . 1 1 3 . . . . . . . . . . Heat Transferred 2289 | . 333 422 222 . 548 . . . . 50 148 . 566 Parts Sabotaged 4 | . . . . . . . . . . . . . 4 Parts Stolen . | . . . . . . . . . . . . . . Parts Stripped . | . . . . . . . . . . . . . . Power Chain Reactions 3 | . . . . . . . . . . 1 . 2 . Alert | -11 -10 -10 -10 -8 -6 -6 -6 -6 -6 -5 -5 -5 -5 ------- Run | Yrd Mat Min Sub Scr Fac Ext Cet Arc Hub Fac Upp Upp War Maximum Alert Level 3 | . . . . . 1 2 . . 3 2 . . . Low Security (%) 61 | 100 100 100 . . 52 8 100 100 42 . . . . Level 1 30 | . . . . . 47 44 . . 5 82 . . . Level 2 6 | . . . . . . 46 . . 16 16 . . . Level 3 . | . . . . . . . . . 35 . . . . Level 4 . | . . . . . . . . . . . . . . Level 5 . | . . . . . . . . . . . . . . High Security . | . . . . . . . . . . . . . . Max Security . | . . . . . . . . . . . . . . Peak Influence 925 | 20 100 114 . . 368 499 176 131 925 452 . . . Initial 452 | . 3 10 . . . 179 130 22 . 452 . . . Average 156 | 4 36 19 . . 168 347 117 31 431 333 . . . Influence Increases 5584 | 25 545 339 . . 1221 771 184 269 1360 650 30 . 190 Destroy 0b10 Robot/C 2360 | . 300 240 . . 560 320 60 80 340 340 20 . 100 Destroy 0b10 Robot/NC 300 | 25 25 5 . . 75 40 10 45 55 20 . . . Destroy Leader 528 | . 68 30 . . 200 52 . . 88 80 10 . . Allied During Kill 930 | . . . . . . 289 70 125 429 17 . . . Successful Hack 293 | . 47 . . . 98 62 8 . 3 75 . . . Select Force Hacks 110 | . 60 . . . . . . . 50 . . . . Disable Machine 315 | . 45 30 . . 150 . . . 60 30 . . . Anti-Garrison Action 150 | . . . . . . . . . 150 . . . . Destroy Structure 268 | . . 4 . . 78 8 36 19 65 58 . . . Lose Combat Pursuer 330 | . . 30 . . 60 . . . 120 30 . . 90 Influence Decreases 5514 | 20 523 366 . . 853 905 362 325 435 1379 226 . 120 Entered New Map 892 | . 2 17 . . . 189 104 34 . 473 73 . . Time Decay 3332 | 20 511 349 . . 703 506 238 231 105 486 153 . 30 Lost Part 360 | . 10 . . . 100 . . . 10 150 . . 90 Lost Ally 630 | . . . . . 50 60 20 60 320 120 . . . Purge Threat 300 | . . . . . . 150 . . . 150 . . . Squads Dispatched 31 | . 3 . . . 17 1 . . 6 4 . . . Investigation 9 | . 2 . . . 4 1 . . 1 1 . . . Extermination 11 | . . . . . 9 . . . . 2 . . . Reinforcement 9 | . 1 . . . 4 . . . 3 1 . . . Assault 2 | . . . . . . . . . 2 . . . . Garrison . | . . . . . . . . . . . . . . Intercept . | . . . . . . . . . . . . . . Searches Triggered . | . . . . . . . . . . . . . . Construction Impeded 1 | . . . . . . . . . 1 . . . . Haulers Reinforced . | . . . . . . . . . . . . . . Active Scanning Responses . | . . . . . . . . . . . . . . Cargo Convoy Interrupts 1 | . . . . . . . . . . 1 . . . Stealth | -11 -10 -10 -10 -8 -6 -6 -6 -6 -6 -5 -5 -5 -5 --------- Run | Yrd Mat Min Sub Scr Fac Ext Cet Arc Hub Fac Upp Upp War Distress Signals 13 | . 1 . . . 4 2 2 . 2 1 . . 1 Communications Jammed 73 | . . . . . . . . . . 73 . . . Distress Signals 72 | . . . . . . . . . . 72 . . . Times Spotted 242 | . 22 13 9 10 39 22 11 5 32 40 3 1 35 Peak Tracking Total 20 | . 3 3 2 4 4 4 5 1 12 15 1 1 20 Tactical Retreats 18 | . . 1 1 3 4 . . . 4 2 . . 3 Traps | -11 -10 -10 -10 -8 -6 -6 -6 -6 -6 -5 -5 -5 -5 ------- Run | Yrd Mat Min Sub Scr Fac Ext Cet Arc Hub Fac Upp Upp War Traps Triggered 7 | . 1 . 1 . 4 . . . . . 1 . . Indirectly . | . . . . . . . . . . . . . . Trap Hack Attempts . | . . . . . . . . . . . . . . Triggered . | . . . . . . . . . . . . . . Disarmed . | . . . . . . . . . . . . . . Reprogrammed . | . . . . . . . . . . . . . . Reused 2 | . . . 1 1 . . . . . . . . . Traps Extracted . | . . . . . . . . . . . . . . Installed 5 | . . . 3 2 . . . . . . . . . Triggered . | . . . . . . . . . . . . . . Most Traps Carried 4 | . . 4 4 4 . . . . . . . . . Machines | -11 -10 -10 -10 -8 -6 -6 -6 -6 -6 -5 -5 -5 -5 ---------- Run | Yrd Mat Min Sub Scr Fac Ext Cet Arc Hub Fac Upp Upp War Machines Disabled 31 | . 3 2 1 6 10 1 . . 5 2 . . 1 Max in Single Turn 3 | . 1 2 1 1 3 . . . . 1 . . 1 Garrison Access 3 | . . . . . 2 . . . 1 . . . . Network Hub 2 | . . . . . . . . . 2 . . . . Machines Repaired . | . . . . . . . . . . . . . . Machines Dismantled 1 | . . . . . . . . . . . . . 1 Machines Sabotaged 1 | . . . . . . . . . 1 . . . . Overloaded Fab Kills . | . . . . . . . . . . . . . . Hacking | -11 -10 -10 -10 -8 -6 -6 -6 -6 -6 -5 -5 -5 -5 --------- Run | Yrd Mat Min Sub Scr Fac Ext Cet Arc Hub Fac Upp Upp War Machines Accessed 92 | . 10 1 2 6 30 21 1 . 1 7 . . 13 Terminals 47 | . 7 1 . . 13 19 1 . 1 5 . . . Fabricators 5 | . . . . . 4 . . . . 1 . . . Repair Stations 6 | . 1 . . . 4 1 . . . . . . . Recycling Units 8 | . 2 . . . 4 1 . . . 1 . . . Scanalyzers 3 | . . . . . 3 . . . . . . . . Garrison Access 2 | . . . . . 2 . . . . . . . . Total Hacks 297 | . 38 2 3 33 88 66 1 . 5 41 . . 20 Successful 178 | . 20 1 3 33 41 35 1 . 2 22 . . 20 Failed 116 | . 17 1 . . 46 30 . . 3 19 . . . Catastrophic 13 | . 1 . . . 7 2 . . 1 2 . . . Database Lockouts 3 | . 1 . . . 1 1 . . . . . . . Manual 126 | . 27 2 . 1 36 26 1 . 5 28 . . . Terminals 175 | . 30 2 . . 48 58 1 . 5 31 . . . Fabricators 18 | . . . . . 14 . . . . 4 . . . Repair Stations 13 | . 2 . . . 7 4 . . . . . . . Recycling Units 26 | . 6 . . . 10 4 . . . 6 . . . Scanalyzers 7 | . . . . . 7 . . . . . . . . Garrison Access 2 | . . . . . 2 . . . . . . . . Terminal Hacks 98 | . 6 1 3 33 12 17 1 . . 5 . . 20 Record 51 | . . . 2 31 . . . . . . . . 18 Part Schematic 5 | . . . . . 2 1 . . . 2 . . . Robot Analysis 8 | . 2 1 . . 3 2 . . . . . . . Prototype ID Bank 7 | . 3 . . . 2 2 . . . . . . . Open Door 14 | . . . . 1 . 10 1 . . . . . 2 Branch Access Points 1 | . . . . . . . . . . 1 . . . Terminal Index 2 | . . . . . 1 . . . . 1 . . . Unreport Threat 2 | . . . . . . 1 . . . 1 . . . Locate Traps 6 | . 1 . . . 4 1 . . . . . . . Proto ID Catalog 2 | . . . 1 1 . . . . . . . . . Fabricator Hacks 5 | . . . . . 4 . . . . 1 . . . Network Status 1 | . . . . . 1 . . . . . . . . Load Schematic 1 | . . . . . 1 . . . . . . . . Build 3 | . . . . . 2 . . . . 1 . . . Repair Station Hacks 8 | . 2 . . . 2 4 . . . . . . . Scan Component 5 | . 1 . . . 2 2 . . . . . . . Repair 3 | . 1 . . . . 2 . . . . . . . Recycling Unit Hacks 4 | . . . . . 2 1 . . . 1 . . . Retrieve Components 4 | . . . . . 2 1 . . . 1 . . . Scanalyzer 3 | . . . . . 3 . . . . . . . . Insert Component 1 | . . . . . 1 . . . . . . . . Retrieve Study 2 | . . . . . 2 . . . . . . . . Garrison Access Hacks 2 | . . . . . 2 . . . . . . . . Seal Access 2 | . . . . . 2 . . . . . . . . Unauthorized Hacks 58 | . 12 . . . 16 13 . . 2 15 . . . Terminals 43 | . 9 . . . 11 12 . . 2 9 . . . Track 1 | . . . . . . 1 . . . . . . . Assimilate 1 | . . . . . . . . . . 1 . . . Botnet 12 | . 3 . . . 3 3 . . 1 2 . . . Operators 4 | . 1 . . . 1 1 . . . 1 . . . Skim 24 | . 5 . . . 7 7 . . . 5 . . . Sabotage 1 | . . . . . . . . . 1 . . . . Fabricators 4 | . . . . . 3 . . . . 1 . . . Report 1 | . . . . . . . . . . 1 . . . Prioritize 1 | . . . . . 1 . . . . . . . . Liberate 1 | . . . . . 1 . . . . . . . . Haulers 1 | . . . . . 1 . . . . . . . . Repair Stations . | . . . . . . . . . . . . . . Recycling Units 11 | . 3 . . . 2 1 . . . 5 . . . Monitor 1 | . . . . . . . . . . 1 . . . Reject 3 | . . . . . 1 1 . . . 1 . . . Recyclers 1 | . . . . . . . . . . 1 . . . Mask 3 | . 1 . . . 1 . . . . 1 . . . Tunnel 2 | . 2 . . . . . . . . . . . . Fedlink 1 | . . . . . . . . . . 1 . . . Scanalyzers . | . . . . . . . . . . . . . . Garrison Access . | . . . . . . . . . . . . . . Data Cores Recovered 2 | . . . . . . 1 . . 1 . . . . Used . | . . . . . . . . . . . . . . Hacking Detections 60 | . 10 1 . . 28 14 . . 1 6 . . . Full Trace Events 6 | . 1 . . . 4 1 . . . . . . . Feedback Events . | . . . . . . . . . . . . . . Feedback Blocked . | . . . . . . . . . . . . . . Robot Schematics Acquired . | . . . . . . . . . . . . . . Robots Built 4 | . . . . . . . . . . 4 . . . Authchips . | . . . . . . . . . . . . . . Time 134 | . . . . . . . . . . 134 . . . Total Robot Build Rating 16 | . . . . . . . . . . 16 . . . Part Schematics Acquired 5 | . . . . . 2 1 . . . 2 . . . Parts Built 2 | . . . . . 2 . . . . . . . . Authchips . | . . . . . . . . . . . . . . Time 245 | . . . . . 245 . . . . . . . . Total Part Build Rating 11 | . . . . . 11 . . . . . . . . Part Studies Acquired 2 | . . . . . 2 . . . . . . . . Parts Repaired 3 | . 1 . . . . 2 . . . . . . . Time 176 | . 26 . . . . 150 . . . . . . . Parts Recycled . | . . . . . . . . . . . . . . Recycled Matter . | . . . . . . . . . . . . . . Retrieved Matter . | . . . . . . . . . . . . . . Retrieved Components 20 | . . . . . 9 9 . . . 2 . . . Parts Scanalyzed 1 | . . . . . 1 . . . . . . . . Part Schematics Acquired . | . . . . . . . . . . . . . . Parts Damaged 1 | . . . . . 1 . . . . . . . . Bothacking | -11 -10 -10 -10 -8 -6 -6 -6 -6 -6 -5 -5 -5 -5 ------------ Run | Yrd Mat Min Sub Scr Fac Ext Cet Arc Hub Fac Upp Upp War Used RIF Installer . | . . . . . . . . . . . . . . Robots Hacked 6 | . . . . 4 . 1 . 1 . . . . . Non-combat 1 | . . . . . . . . 1 . . . . . Combat 5 | . . . . 4 . 1 . . . . . . . Robot Hacks Applied 6 | . . . . 4 . 1 . 1 . . . . . parse_system 5 | . . . . 4 . 1 . . . . . . . check_alert 1 | . . . . . . . . 1 . . . . . Relay Couplers Released 2 | . . . . . . . . . 2 . . . . Machine Destruction 2 | . . . . . . . . . 2 . . . . Fabnet Peak Effective % . | . . . . . . . . . . . . . . Robots Rewired 20 | . . . . . . 8 5 . 3 4 . . . Allies Hacked . | . . . . . . . . . . . . . . Hacks Repelled 1 | . . . . . . . . . . 1 . . . Allies | -11 -10 -10 -10 -8 -6 -6 -6 -6 -6 -5 -5 -5 -5 -------- Run | Yrd Mat Min Sub Scr Fac Ext Cet Arc Hub Fac Upp Upp War Total Allies 49 | . . 4 . . 2 21 10 . 3 9 . . . Largest Group 27 | . . 4 3 . 2 19 27 27 21 5 . . . Highest-Rated Group 1638 | . . 71 40 . 82 785 1638 1638 1290 158 . . . Highest-Rated Ally 159 | . . 31 16 . 41 159 159 159 110 117 . . . Total Orders 37 | . . . 1 . 8 4 9 7 . 8 . . . STAY 14 | . . . 1 . . 3 5 3 . 2 . . . FOLLOW 11 | . . . . . . 1 4 4 . 2 . . . DROP 1 | . . . . . . . . . . 1 . . . PICKUP 3 | . . . . . . . . . . 3 . . . EXPLORE 5 | . . . . . 5 . . . . . . . . RETURN 3 | . . . . . 3 . . . . . . . . Ally Attacks 323 | . . . 21 . 2 52 46 31 144 27 . . . Total Damage 9374 | . . . 241 . 190 1011 1474 641 4927 890 . . . Kills 57 | . . . 1 . . 13 4 4 30 5 . . . Allies Corrupted 6 | . . . . . . . . . 6 . . . . Allies Melted 1 | . . . . 1 . . . . . . . . . Intel | -11 -10 -10 -10 -8 -6 -6 -6 -6 -6 -5 -5 -5 -5 ------- Run | Yrd Mat Min Sub Scr Fac Ext Cet Arc Hub Fac Upp Upp War Active Infowar (turns) 13860 | 14 1669 801 265 . 3850 1369 502 1025 112 1054 1238 890 1071 Sensors 6858 | . . . . . 3850 1369 502 1025 112 . . . . IFF 3199 | . . . . . . . . . . . 1238 890 1071 Terrain 4680 | 14 1669 801 265 . 1922 9 . . . . . . . Jamming 1054 | . . . . . . . . . . 1054 . . . Robot Analysis Total 8 | . 2 1 . . 3 2 . . . . . . . Derelict Logs Recovered 11 | . . 1 2 5 . . . . . . 1 2 . Drone Launches 4 | . . . . . 4 . . . . . . . . Drone Recoveries 3 | . . . . . 3 . . . . . . . . Exploration | -11 -10 -10 -10 -8 -6 -6 -6 -6 -6 -5 -5 -5 -5 ------------- Run | Yrd Mat Min Sub Scr Fac Ext Cet Arc Hub Fac Upp Upp War Turns Passed 31250 | 119 1669 1805 6083 8066 4794 1369 502 1025 258 1279 1430 890 1961 Spaces Moved 15860 | 62 1241 665 2232 4594 2967 902 297 272 122 605 637 401 863 Core 11 | 11 . . . . . . . . . . . . . Treads 1918 | . . . . . . . . . . 17 637 401 863 Legs 7143 | 51 900 665 1594 . 1752 902 297 272 122 588 . . . Wheels 6788 | . 341 . 638 4594 1215 . . . . . . . . Hover . | . . . . . . . . . . . . . . Flight . | . . . . . . . . . . . . . . Fastest Speed 50 | 50 100 120 120 90 100 101 101 101 100 135 135 215 135 Average Speed 172 | 120 115 242 258 164 133 101 101 169 163 175 214 215 206 Slowest Speed 820 | 150 120 260 820 345 185 101 101 176 245 240 215 215 215 Overloaded Moves . | . . . . . . . . . . . . . . Propulsion Burnouts . | . . . . . . . . . . . . . . Robots Hopped . | . . . . . . . . . . . . . . Potential Cave-ins 9 | . . . 6 . . . 3 . . . . . . Cave-ins Triggered . | . . . . . . . . . . . . . . Exploration Rate (%) 66 | 4 98 95 68 93 55 84 65 97 17 18 65 72 94 Regions Visited 13 Branch Regions 10 Pre-discovered Areas 11 | . 3 . . 1 3 . . . . 2 1 1 . Known Exits Taken 9 | . . 1 . . 1 1 1 1 1 1 1 1 . Unknown Exits Taken 4 | 1 1 . 1 1 . . . . . . . . . Scrap Searched 28 | . . 1 14 7 . . . . . . 4 2 . Spaces Dug 84 | . . . 16 5 26 . 26 1 . 2 4 . 4 Terrain Destroyed 224 | . . 4 47 7 80 4 26 1 6 25 7 . 17 Melee 40 | . . . . . 13 . 26 1 . . . . . Projectile 91 | . . . 18 7 32 4 . . . 14 7 . 9 AOE 93 | . . 4 29 . 35 . . . 6 11 . . 8 Terrain Rammed . | . . . . . . . . . . . . . . Walls Destroyed . | . . . . . . . . . . . . . . Machines Disabled . | . . . . . . . . . . . . . . Actions | -11 -10 -10 -10 -8 -6 -6 -6 -6 -6 -5 -5 -5 -5 --------- Run | Yrd Mat Min Sub Scr Fac Ext Cet Arc Hub Fac Upp Upp War Total 19094 | 85 1399 757 2464 5122 3630 1331 442 806 171 763 686 417 1021 Wait 1833 | . 83 23 48 330 333 299 76 497 2 46 20 6 70 Move 15847 | 61 1240 664 2231 4593 2966 901 296 271 121 604 636 400 863 Hop . | . . . . . . . . . . . . . . Pick Up 276 | 8 9 13 55 68 52 12 5 4 11 13 9 1 16 Fast Attach 69 | 6 6 . 4 8 16 6 . 5 . 7 1 1 9 Attach 115 | 1 2 . 7 7 40 14 6 2 5 12 6 1 12 Detach 44 | . 1 . 1 4 13 11 2 3 . 4 . . 5 Swap 121 | . 5 5 22 12 29 3 5 2 11 14 6 1 6 Drop 223 | . 11 1 30 72 41 18 3 2 11 11 1 1 21 Fire 429 | 9 42 51 61 22 107 32 18 2 10 51 7 6 11 Melee 90 | . . . . 4 33 4 31 18 . . . . . Ram . | . . . . . . . . . . . . . . Kick 2 | . . . 2 . . . . . . . . . . Crush . | . . . . . . . . . . . . . . Escape Stasis . | . . . . . . . . . . . . . . Rewire 32 | . . . . . . 31 . . . 1 . . . Trap 5 | . . . 3 2 . . . . . . . . . Miscellaneous 8 | . . . . . . . . . . . . . 8 Route ------- -11/Scrapyard -10/Materials (discovered 6 exits: *Mat x3 / *Min x2 / *Sub) -10/Mines (discovered 3 exits: *Mat x2 / *Sub) -10/Subcaves (discovered 4 exits: *Mat x2 / Rec / *Scr) -8/Scraptown (discovered 2 exits: *Fac x2) -6/Factory (discovered 5 exits: *Fac x3 / *Low / *Ext) -6/Extension (discovered 2 exits: *Fac / *Cet) -6/Cetus (discovered 2 exits: *Fac / *Arc) -6/Archives (discovered 3 exits: *Fac / *Hub x2) -6/Hub_04(d) (discovered 3 exits: *Fac x3) -5/Factory (discovered 2 exits: *Upp x2) -5/Upper Caves -5/Upper Caves (discovered 2 exits: Fac / *War) -5/Warlord (discovered 1 exit: [*Pro]) History --------- Turn | Location | Event 22 | -11/Scrapyard | Discovered new exit (range 13) 120 | -11/Scrapyard | Entered Materials 221 | -10/Materials | Discovered new exit (range 16) 286 | -10/Materials | Discovered new exit (range 15) 305 | -10/Materials | Build established: Mutant 463 | -10/Materials | Discovered new exit (range 8) 620 | -10/Materials | Derelicts attacked the area 655 | -10/Materials | Repaired EM Pulse Gun 851 | -10/Materials | Central database locked down 864 | -10/Materials | Discovered new exit (range 12) 884 | -10/Materials | Learned location of Recycling (-8) 1006 | -10/Materials | Learned Storage interactive machine intel 1054 | -10/Materials | Learned location of 1 exit from Storage 1090 | -10/Materials | Identified exit to Materials 1114 | -10/Materials | Learned location of 2 exits from Mines 1130 | -10/Materials | Learned 4 Recycling zone layouts 1195 | -10/Materials | Learned Storage stockpile data 1242 | -10/Materials | Learned Storage garrison access intel 1427 | -10/Materials | Discovered new exit (range 6) 1789 | -10/Materials | Entered Mines 1790 | -10/Mines | Identified exit to Subcaves 1816 | -10/Mines | Learned Materials security intel 1955 | -10/Mines | Received a Rocket Launcher from a helpful Derelict 2197 | -10/Mines | Excavation squad dispatched 2197 | -10/Mines | A large section of the Mines collapsed 3092 | -10/Mines | Assisted by bots powering up and referring to "LRC-V3" 3136 | -10/Mines | Found a hidden stash of uninstalled traps 3246 | -10/Mines | Discovered exit to Materials (range 15) 3273 | -10/Mines | Received a Mining Laser from a helpful Derelict 3400 | -10/Mines | A weapon hastily lodged in a ceiling crevice suddenly fell to the ground 3594 | -10/Mines | Entered Subcaves 3594 | -10/Subcaves | Accompanied by 3 allies 3595 | -10/Subcaves | Approached by a straggling Scientist 3595 | -10/Subcaves | Identified exit to Recycling 3628 | -10/Subcaves | Learned Materials stockpile data 3691 | -10/Subcaves | Discovered new exit (range 9) 4193 | -10/Subcaves | Visited 4L-MR0's lab 4237 | -10/Subcaves | Found Arachnoskeleton 4422 | -10/Subcaves | Core integrity fell below 50% 4523 | -10/Subcaves | Lost 3 parts (1u2w) 4902 | -10/Subcaves | Build established: Scavenger-Mutant 5643 | -10/Subcaves | Build established: Mutant 6236 | -10/Subcaves | Identified exit to Materials 6273 | -10/Subcaves | Visited Clippyterm 6356 | -10/Subcaves | Core integrity fell below 20% 7233 | -10/Subcaves | Shifting Twisted Machinery released Scrap Shield 7238 | -10/Subcaves | Shifting Twisted Machinery released Enh. Flamer 8311 | -10/Subcaves | Build established: Hauler-Mutant 9677 | -10/Subcaves | Entered Scraptown 10276 | -8/Scraptown | Discovered new exit (range 11) 10326 | -8/Scraptown | Scanned Subdweller tech in exchange for log data 10338 | -8/Scraptown | Learned location of 1 exit from Factory 10341 | -8/Scraptown | Learned location of 1 exit from Research 10344 | -8/Scraptown | Learned Research stockpile data 10347 | -8/Scraptown | Learned location of Warlord (-5) 10350 | -8/Scraptown | Learned location of 2 exits from Proximity Caves 10994 | -8/Scraptown | Visited Assassins FH 11056 | -8/Scraptown | Visited Red Mages 11124 | -8/Scraptown | Visited Awakened 11152 | -8/Scraptown | Visited Bundlers 11293 | -8/Scraptown | Visited Cyclists 11331 | -8/Scraptown | Visited Fellowship of the Rings 11393 | -8/Scraptown | Visited CPS Storage 11772 | -8/Scraptown | Visited UFD Registry 11772 | -8/Scraptown | Registered with UFD as "Nanobank" 11844 | -8/Scraptown | Visited Science Guys 11944 | -8/Scraptown | Visited Abandonware Association 11970 | -8/Scraptown | Learned abandonware demo "REPAIR.EXE" 11970 | -8/Scraptown | Learned abandonware demo "POISON.EXE" 12020 | -8/Scraptown | Visited Curators Association 12083 | -8/Scraptown | Visited Scrapoid Pod Storage 12110 | -8/Scraptown | Visited Scrap Suit Storage 12182 | -8/Scraptown | Visited Sword Containment 12203 | -8/Scraptown | Found Prototype Slashing Weapon 12204 | -8/Scraptown | Identified Companion Sword 12308 | -8/Scraptown | Delivered Scrap Shield to a Scientist 12530 | -8/Scraptown | Visited LU-1G1's Boring Crew 12654 | -8/Scraptown | Visited Junk Cannon Lab 12717 | -8/Scraptown | Visited Derelict Rescue Squad 14091 | -8/Scraptown | Discovered new exit (range 3) 14107 | -8/Scraptown | Warned about trapping Scraptown 14271 | -8/Scraptown | Visited DA-N13 Charitable Foundation 14276 | -8/Scraptown | Found DCF Scrap (29 items) 14479 | -8/Scraptown | Build established: Mutant 16139 | -8/Scraptown | Found Prototype Special Weapon 16139 | -8/Scraptown | Identified Junk Cannon 16592 | -8/Scraptown | Found DRS Beacon 17134 | -8/Scraptown | Met Optimus 17134 | -8/Scraptown | Accepted into 0bPrime 17519 | -8/Scraptown | Build established: Derelict-Mutant 17534 | -8/Scraptown | Civil war broke out across Scraptown 17540 | -8/Scraptown | Found System Spiker 17578 | -8/Scraptown | Lost 3 allies 17621 | -8/Scraptown | Lost 5 allies 17715 | -8/Scraptown | Found Damper Plating 17721 | -8/Scraptown | Lost 3 allies 17743 | -8/Scraptown | Entered Factory 17743 | -6/Factory | Evolved 8 slots: Propulsion x1, Utility x7 17744 | -6/Factory | Identified exit to Factory 18332 | -6/Factory | Discovered new exit (range 7) 18439 | -6/Factory | Fabricated Imp. Heavy Laser (x1) 18604 | -6/Factory | Core integrity fell below 50% 18640 | -6/Factory | Lost 7 parts (1p2n3u1w) 18836 | -6/Factory | Build established: Mutant 19018 | -6/Factory | Allied Derelicts emerged from ambush trap array 19455 | -6/Factory | Spotted B-75 Beast 19581 | -6/Factory | Attached Arachnoskeleton, gained temporary slots: Propulsion x3 19773 | -6/Factory | Build established: Assassin 19917 | -6/Factory | Fabricated Prc. Energy Filter (x1) 20080 | -6/Factory | Learned location of Proximity Caves (-3) 20125 | -6/Factory | Learned location of Zion (-6) 20185 | -6/Factory | Learned Extension stockpile data 20201 | -6/Factory | Learned location of 2 exits from Archives 20216 | -6/Factory | Learned location of 1 exit from Hub_04(d) 20241 | -6/Factory | Learned location of Extension (-6) 20274 | -6/Factory | Learned location of 1 exit from Upper Caves 20364 | -6/Factory | Build established: Skirmisher 20642 | -6/Factory | Identified exit to Lower Caves 21574 | -6/Factory | Discovered exit to Factory (range 18) 21654 | -6/Factory | Build established: Mutant 22157 | -6/Factory | Discovered new exit (range 16) 22173 | -6/Factory | Identified exit to Extension 22356 | -6/Factory | Central database locked down 22537 | -6/Factory | Entered Extension 22576 | -6/Extension | Rescued a captive Derelict 22579 | -6/Extension | Rescued a captive Derelict 22720 | -6/Extension | Rescued a captive Derelict 22907 | -6/Extension | Rescued a captive Derelict 23010 | -6/Extension | Rescued a captive Derelict 23011 | -6/Extension | Rescued a captive Derelict 23030 | -6/Extension | Spotted B-75 Beast 23036 | -6/Extension | Spotted B-75 Beast 23041 | -6/Extension | Rewired B-75 Beast 23044 | -6/Extension | Rewired B-75 Beast 23147 | -6/Extension | Discovered new exit (range 16) 23148 | -6/Extension | Discovered exit to Factory (range 15) 23161 | -6/Extension | Identified exit to Cetus 23187 | -6/Extension | Build established: Commander-Mutant 23260 | -6/Extension | Rescued a captive Derelict 23277 | -6/Extension | Rescued a captive Derelict 23278 | -6/Extension | Rescued a captive Derelict 23452 | -6/Extension | Repaired Broken Prc. Energy Filter 23491 | -6/Extension | Repaired Hrd. Medium Armor Plating 23526 | -6/Extension | Central database locked down 23554 | -6/Extension | Rescued a captive Derelict 23591 | -6/Extension | Rescued a captive Derelict 23608 | -6/Extension | Rescued a captive Derelict 23638 | -6/Extension | Learned Factory fabricator intel 23669 | -6/Extension | Rescued A7 23716 | -6/Extension | Learned location of 1 exit from Hub_04(d) 23840 | -6/Extension | Learned 2 Proximity Caves zone layouts 23885 | -6/Extension | Learned location of 1 exit from Lower Caves 23906 | -6/Extension | Entered Cetus 23906 | -6/Cetus | Accompanied by 18 allies (A7) 23911 | -6/Cetus | Acquired a Cetus Manufacturing Module code from A7 23919 | -6/Cetus | Spotted Cetus Guard 23920 | -6/Cetus | Spotted Cetus Guard 23927 | -6/Cetus | Spotted Cetus Guard 23927 | -6/Cetus | Spotted Cetus Guard 23928 | -6/Cetus | Rewired Cetus Guard 23932 | -6/Cetus | Rewired Cetus Guard 23955 | -6/Cetus | Allies destroyed Cetus Guard 23966 | -6/Cetus | Destroyed Cetus Guard 24036 | -6/Cetus | Started Cetus Manufacturing Module 24043 | -6/Cetus | Escorted A7 to Cetus Mainframe 24061 | -6/Cetus | Manufactured an Enhanced Grunt 24067 | -6/Cetus | Discovered new exit (range 16) 24086 | -6/Cetus | Manufactured an Enhanced Grunt 24103 | -6/Cetus | Identified exit to Archives 24111 | -6/Cetus | Manufactured an Enhanced Grunt 24136 | -6/Cetus | Manufactured an Enhanced Grunt 24140 | -6/Cetus | Spotted Cetus Guard 24141 | -6/Cetus | Spotted Cetus Guard 24142 | -6/Cetus | System corruption reached 10% 24143 | -6/Cetus | Spotted Cetus Guard 24143 | -6/Cetus | Spotted Cetus Guard 24157 | -6/Cetus | Rewired Cetus Guard 24159 | -6/Cetus | Rewired Cetus Guard 24160 | -6/Cetus | Rewired Cetus Guard 24161 | -6/Cetus | Manufactured an Enhanced Grunt 24165 | -6/Cetus | Discovered exit to Factory (range 16) 24169 | -6/Cetus | Allies destroyed Cetus Guard 24170 | -6/Cetus | Met Revision 17 24408 | -6/Cetus | Entered Archives 24408 | -6/Archives | Accompanied by 27 allies (A7) 24409 | -6/Archives | Identified exit to Hub_04(d) 24413 | -6/Archives | Received a hacking code to weaken MAIN.C 24447 | -6/Archives | Unable to access archive contents 24468 | -6/Archives | Lost 3 allies 24478 | -6/Archives | Discovered exit to Factory (range 15) 25433 | -6/Archives | Entered Hub_04(d) 25433 | -6/Hub_04(d) | Accompanied by 23 allies 25434 | -6/Hub_04(d) | Allies destroyed Cetus Guard 25535 | -6/Hub_04(d) | Discovered exit to Factory (range 16) 25542 | -6/Hub_04(d) | Network Hub disabled 25546 | -6/Hub_04(d) | Core integrity fell below 20% 25557 | -6/Hub_04(d) | Network Hub disabled 25566 | -6/Hub_04(d) | Spotted Lightning 25567 | -6/Hub_04(d) | Spotted Lightning 25575 | -6/Hub_04(d) | Spotted Lightning 25583 | -6/Hub_04(d) | Rewired Lightning 25585 | -6/Hub_04(d) | Rewired Lightning 25595 | -6/Hub_04(d) | Found Prototype Device 25604 | -6/Hub_04(d) | Identified Exp. Thermal Shield 25650 | -6/Hub_04(d) | Spotted Lightning 25650 | -6/Hub_04(d) | Spotted Lightning 25651 | -6/Hub_04(d) | Spotted Lightning 25680 | -6/Hub_04(d) | Destroyed Lightning 25681 | -6/Hub_04(d) | Lost 24 allies 25691 | -6/Hub_04(d) | Entered Factory 25691 | -5/Factory | Evolved 2 slots: Utility x1, Weapon x1 25692 | -5/Factory | Loaded intel: 6 fabricator locations 25750 | -5/Factory | Identified exit to Upper Caves 25967 | -5/Factory | Build established: Scavenger-Gunner 26486 | -5/Factory | Build established: Hacker-Gunner 26591 | -5/Factory | Learned location of 1 exit from Research 26658 | -5/Factory | Loaded intel: 8 recycling unit locations 26668 | -5/Factory | Fabricated S-27 Virus (x4) 26722 | -5/Factory | Learned location of 2 exits from Upper Caves 26762 | -5/Factory | Lost 3 allies 26812 | -5/Factory | Learned 4 Extension zone layouts 26843 | -5/Factory | Learned Extension stockpile data 26883 | -5/Factory | Learned Armory repair station intel 26901 | -5/Factory | Cargo convoy interrupted 26954 | -5/Factory | Lost 3 allies 26957 | -5/Factory | Core integrity fell below 50% 26970 | -5/Factory | Entered Upper Caves 26971 | -5/Upper Caves | Identified exit to Upper Caves 26972 | -5/Upper Caves | UFD Scientist delivered a prototype 26974 | -5/Upper Caves | Found Prototype Protection 26974 | -5/Upper Caves | Identified Enh. Scrap Shield 26978 | -5/Upper Caves | System corruption reached 10% 26992 | -5/Upper Caves | Lost 15 parts (1p3n7u4w) 27200 | -5/Upper Caves | Build established: Scavenger-Gunner 27821 | -5/Upper Caves | Learned location of Armory (-3) 27968 | -5/Upper Caves | Attacked by a delusional Derelict stockpiling parts 28274 | -5/Upper Caves | Spotted B-75 Beast 28400 | -5/Upper Caves | Entered another Upper Caves area 28401 | -5/Upper Caves | Identified exit to Warlord 28401 | -5/Upper Caves | Identified exit to Factory 28458 | -5/Upper Caves | Build established: Gunner 28786 | -5/Upper Caves | Learned location of 1 exit from Factory 28982 | -5/Upper Caves | Build established: Derelict-Gunner 29207 | -5/Upper Caves | Spotted B-75 Beast 29290 | -5/Upper Caves | Entered Warlord 29363 | -5/Warlord | System corruption cleaned by Quarantine Array 29405 | -5/Warlord | System corruption cleaned by Quarantine Array 29846 | -5/Warlord | Learned Armory stockpile data 29848 | -5/Warlord | Learned 4 Access zone layouts 29848 | -5/Warlord | Learned 4 Testing zone layouts 29850 | -5/Warlord | Learned Testing security intel 29850 | -5/Warlord | Learned Armory terminal intel 29850 | -5/Warlord | Learned Armory garrison access intel 30014 | -5/Warlord | Found Prototype Device 30293 | -5/Warlord | Build established: Scavenger-Gunner 30421 | -5/Warlord | Warlord's base attacked by MAIN.C 30474 | -5/Warlord | Found Prototype Energy Gun 30475 | -5/Warlord | Identified Vortex Shotgun 30481 | -5/Warlord | Found Vortex Shotgun 30630 | -5/Warlord | Rebuked by Warlord 30688 | -5/Warlord | Build established: Scavenger-Tank 30771 | -5/Warlord | Warlord forces counterattacked 30791 | -5/Warlord | Found Prototype Hackware 30806 | -5/Warlord | Found Prototype Device 30806 | -5/Warlord | Identified Exp. Phase Shifter 30822 | -5/Warlord | Found Prototype Processor 30836 | -5/Warlord | Found Prototype Reactor 30963 | -5/Warlord | Spotted Striker 30981 | -5/Warlord | Spotted Striker 31096 | -5/Warlord | Warlord base infiltrated, sounded retreat 31197 | -5/Warlord | Discovered new exit (range 14) 31221 | -5/Warlord | Spotted Executioner 31221 | -5/Warlord | Spotted Executioner 31246 | -5/Warlord | Core integrity fell below 20% 31251 | -5/Warlord | Destroyed by Executioner with Helical Railgun Last Messages --------------- 31241_ Vortex Shotgun destroyed. 31241_ Penetrated by Slug. 31243_ The unstable cave ceiling collapses. 31244_ Slug penetrates Earth. 31244_ Penetrated by Slug. 31245_ S-27 Virus destroyed. 31245_ Penetrated by Slug. 31245_ Vortex Shotgun destroyed. 31245_ Penetrated by Slug. 31245_ Executioner suffers critical hit (Destroy). 31245_ Penetrated by Slug. 31247_ The unstable cave ceiling collapses. 31248_ Quantum Reactor destroyed. 31248_ Penetrated by Slug. 31248_ Adv. Cooling System destroyed. 31249_ S-27 Virus destroyed. 31249_ Slug penetrates G-67 Veteran. 31249_ Penetrated by Slug. 31250_ The unstable cave ceiling collapses. 31251_ Penetrated by Slug. Map ----- +----------------------------------------------------+ | ???????????????????????????????????? | | ???????????????????????????????????? | | ???????????????????????????????????? | | ??###??????????????????????????????? | | ###X#############??????????????????? | | #??????????????????? | | #??????????????????? | | ############## #??????????????????? | | ?????????????# #??????????????????? | | ?????????????# #??????????????????? | | ?????????????# #??????????????????? | | ?????????????# #??????????????????? | | ????????????## ##?????????####????? | | ???????????## ######???# ##???? | | ???????????# # # ##?# ???? | | ???????????# ## < #?? | | ???????????# # # #?? | | ???????????# # #??? | | ???????????## # # #???? | | ????????????## # #???? | | ?????????????# # # ^#????? | | ??????????????? # # # ####??? | | ????????????????# #""###? | | ????????????????# % ";;#? | | ????????????????## # ##; ;#? | | ?????????????????#; @ ; ## | | ""???????????????##; ; ;# | | ""#???????????????## #; ;## | | ""#????????????????#; # | | ""#????????????????### EsE/;"!%= # | | ""#####????#????#???# % !=;;"%/ ; | | ""]%%"#### # #""##??# #=gi%=[*=*=;# | | ""[%%=" [" *"" *=h=%**%*" | | ""!|!%!!%[*[! /d%![d*/= " | | %!!=[!!=%=%!= # = %! %[*%%* " | | !% %!%%%%=%[% ! [=!%=#### | | %% %[]==%*[! p = # !==!#?? | | %%!%%%!%%=!%* [%=##?? | | ""!%=%[= != * = # #*%=#?? | | "" "* "! " == ##[*[#?? | | " ############## #[=#### #=!%#?? | | ""#####????????????###=]#?# [ #?? | | ""#????????????????## ### #?? | | ""#????????????????# ### ! ##?? | | ""????????????????## ##?# %=#??? | | "?????????????????# #??## ##??? | | ??????????????????# #???## #???? | | ??????????????????# ##????# #???? | | ??????????????????# #?????## ##??? | | ?????????????????## ##????## #??? | +----------------------------------------------------+ Best States ------------- Heat Dissipation 71 Energy Generation 25 Energy Capacity 350 Matter Stores 300 Matter Capacity 300 Sight Range 16 Robot Scan Range 15 Terrain Scan Range 20 Terrain Scan Density 10 Jamming Range 12 Power Amplification 20 Base Temperature (-) 150 Armor Coverage 1925 Resistance: TH 30 Resistance: EM 90 Weapon Shielding 66 Weapon Cycling 20 Phase Shifting 20 Evasion (%) 60 Targeting Accuracy 16 Core Analysis 6 Recoil Reduction 3 Energy Filtering 50 Particle Charging 25 Offensive Hacking 14 Defensive Hacking 12 Item Schematics ----------------- Railgun | -6/Factory | Hacked Imp. Remote Shield | -6/Factory | Hacked Adv. Trap Extractor | -6/Extension | Hacked Adv. System Restoration Module | -5/Factory | Hacked Biometal Medium Treads | -5/Factory | Hacked Robot Schematics ------------------ None Fabricated ------------ Imp. Heavy Laser | x1 | -6/Factory | Preloaded Prc. Energy Filter | x1 | -6/Factory | Preloaded S-27 Virus | x4 | -5/Factory | Preloaded Repaired ---------- EM Pulse Gun | 48% | -10/Materials Prc. Energy Filter | 80% | -6/Extension | Broken Hrd. Medium Armor Plating | 8% | -6/Extension Studied --------- Arm. Leg | -6/Factory | Hacked Fission Core | -6/Factory | Hacked Alien Tech Used ----------------- None Achievements -------------- Hammer Time Loot Taster Low-level Research Challenges ------------ None Game ------ Seed GammaInsulationMatrix Manual? 0 Play Time 05:09:58 Cumulative 742.7 hours Start 2025.11.27 @ 19:23:10 End 2025.11.28 @ 02:25:22 Sessions 1 Manual Loads 0 Difficulty Rogue Special Mode None Game No. 521 Rogue 521 Adventurer 0 Explorer 0 Win Type - Total 1 Types 1/0/0/0/0/0/0/0/0/0 Lore% 72 Gallery% 68 Achievement% 47 Wizard Run 0 Options --------- Layout 1 ASCII 0 Keyboard 0 Movement Mouse Keybinds 0 Fullscreen 1 Font 20/SmallcapsGlow Map View 54x42 Zoom Use 0% Tactical HUD 1 Map Filters NONE Filters NONE Steam 1 RUN: e7f90607-7452-4762-ab95-a6c14809d9d8